[Event "Djerba Festival Open-A 2024"]
[Site "Djerba"]
[Date "2024.02.18"]
[Round "1.2"]
[White "Schenaoui Nabil"]
[Black "Defromont, Benjamin"]
[Result "0-1"]
[ECO "A45"]
[WhiteElo "2115"]
[BlackElo "2423"]
[Annotator "RC"]
[PlyCount "97"]
[EventDate "2024.02.18"]
[EventType "swiss"]
[EventCountry "TUN"]
[SourceTitle "playchess.com"]
[Source "ChessBase"]
[SourceQuality "1"]
[TimeControl "5400+30"]

1. d4 {[%emt 1:31:00]} Nf6 {[%emt 0:00:17]} 2. Bf4 {[%emt 0:00:00]} c5 {[%emt 0:00:41]} 3. e3 {[%emt 0:00:00]} Nd5 {[%emt 0:00:31]} 4. Bg3 {[%emt 0:00:00]} Qb6 {[%emt 0:00:44]} 5. b3 {[%emt 0:00:00]} cxd4 {[%emt 0:00:13]} 6. Qxd4 {[%emt 0:00:00]} Qxd4 {[%emt 0:05:54]} 7. exd4 {[%emt 0:00:00]} Nc6 {[%emt 0:00:09]} 8. c3 {[%emt 0:00:00]} g6 {[%emt 0:05:30]} 9. Bc4 {[%emt 0:00:00]} Nb6 {[%emt 0:01:51]} 10. Bd3 {[%emt 0:00:00]} Bg7 {[%emt 0:01:38]} 11. Nf3 {[%emt 0:00:00]} d6 {[%emt 0:00:42]} 12. O-O {[%emt 0:00:00]} O-O {[%emt 0:00:15]} 13. Nbd2 {[%emt 0:00:00]} Bd7 {[%emt 0:05:34]} 14. Rac1 {[%emt 0:00:00]} Rae8 {[%emt 0:02:54]} 15. Nc4 {[%emt 0:00:00]} Nd5 {[%emt 0:07:03]} 16. Ne3 {[%emt 0:00:00]} Nxe3 {[%emt 0:02:43]} 17. fxe3 {[%emt 0:00:00]} e5 {[%emt 0:00:13]} 18. Bc4 {[%emt 0:00:00]} Bh6 {[%emt 0:00:35]} 19. Rce1 {[%emt 0:00:00]} Kg7 {[%emt 0:02:06]} 20. Bf2 {[%emt 0:00:00]} f5 {[%emt 0:01:53]} 21. Rd1 {[%emt 0:00:00]} e4 {[%emt 0:13:50]} 22. Nd2 {[%emt 0:00:00]} Ne7 {[%emt 0:01:06]} 23. Rde1 {[%emt 0:00:00]} b5 {[%emt 0:00:47]} 24. Be2 {[%emt 0:00:00]} Nd5 {[%emt 0:09:21]} 25. Bxb5 {[%emt 0:00:00]} Bxb5 {[%emt 0:03:31]} 26. c4 {[%emt 0:00:00]} Ba6 {[%emt 0:00:47]} 27. cxd5 {[%emt 0:00:00]} Bxf1 {[%emt 0:00:12]} 28. Kxf1 {[%emt 0:00:00]} f4 {[%emt 0:00:30]} 29. Ke2 {[%emt 0:00:00]} Rf5 {[%emt 0:00:31]} 30. Rc1 {[%emt 0:00:00]} Re7 {[%emt 0:00:24]} 31. Rc6 {[%emt 0:00:00]} Rxd5 {[%emt 0:01:17]} 32. Nc4 {[%emt 0:00:00]} Rh5 {[%emt 0:09:17]} 33. h3 {[%emt 0:00:00]} d5 {[%emt 0:06:48]} 34. Ne5 {[%emt 0:00:00]} Rf5 {[%emt 0:02:11]} 35. Rc5 {[%emt 0:00:00]} Bg5 {[%emt 0:03:56]} 36. exf4 {[%emt 0:00:00]} Bxf4 {[%emt 0:00:44]} 37. g4 {[%emt 0:00:00]} Rf8 {[%emt 0:01:23]} 38. Rxd5 {[%emt 0:00:00]} Rc8 {[%emt 0:01:04]} 39. Nc4 {[%emt 0:00:30]} Rc6 {[%emt 0:01:45]} 40. Rd8 {[%emt 0:01:52]} Ra6 {[%emt 0:00:46]} 41. a3 {[%emt 0:00:23]} Rb7 {[%emt 0:01:04]} 42. d5 {[%emt 0:01:54]} Rxb3 {[%emt 0:00:18]} 43. Bd4+ {[%emt 0:00:52]} Kh6 {[%emt 0:01:07]} 44. h4 {[%emt 0:01:29]} Rh3 {[%emt 0:05:22]} 45. Rd7 {[%emt 0:00:43]} Rxh4 {[%emt 0:00:43]} 46. d6 {[%emt 0:05:09]} Rh2+ {[%emt 0:00:07]} 47. Kf1 {[%emt 0:01:31]} Rc6 {[%emt 0:00:28]} 48. Rc7 {[%emt 0:03:07]} Rxc7 {[%emt 0:00:19]} 49. Be5 {[%emt 0:06:30]} 0-1

[Event "Djerba Festival Open-A 2024"]
[Site "Djerba"]
[Date "2024.02.18"]
[Round "1.3"]
[White "Eden, James"]
[Black "Dwilewicz, Katarzyna"]
[Result "1-0"]
[ECO "B22"]
[WhiteElo "2319"]
[BlackElo "2129"]
[Annotator "TA"]
[PlyCount "127"]
[EventDate "2024.02.18"]
[EventType "swiss"]
[EventCountry "TUN"]
[SourceTitle "playchess.com"]
[Source "ChessBase"]
[SourceQuality "1"]
[TimeControl "5400+30"]

{[%evp 36,127,-20,-29,-23,-29,-31,-46,-19,-19,-16,-56,-39,-54,-54,-54,-61,-123,-65,-62,-60,-62,-56,-91,-58,-54,-53,-111,-112,-131,-98,-100,-82,-303,-357,-586,-561,-531,-486,-560,-551,-640,-583,-594,-567,-628,-555,-1189,-828,-1200,-888,-2386,-1947,-1663,-406,-1361,-8,-8,-8,-8,0,0,0,-8,0,-72,-105,-64,8,8,308,14,14,14,4686,3461,1739,1834,2285,2085,29956,29957,29966,29968,29969,29970,29972,29972,29968,29967,29973,29974,29974,29972]} 1. e4 {[%emt 0:00:04]} c5 {[%emt 0:00:13]} 2. Nf3 {[%emt 0:00:19]} e6 {[%emt 0:00:07]} 3. c3 {[%emt 0:01:46]} d5 {[%emt 0:00:28]} 4. exd5 {[%emt 0:00:47]} Qxd5 {[%emt 0:00:11]} 5. d4 {[%emt 0:00:24]} Nf6 {[%emt 0:00:06]} 6. Na3 {[%emt 0:01:51]} Nc6 {[%emt 0:00:50]} 7. Nb5 {[%emt 0:03:06]} Qd8 {[%emt 0:00:07]} 8. dxc5 {[%emt 0:03:30]} Bxc5 {[%emt 0:02:20]} 9. Qxd8+ {[%emt 0:11:24]} Kxd8 {[%emt 0:00:06]} 10. Bf4 {[%emt 0:00:20]} Nd5 {[%emt 0:03:22]} 11. Rd1 {[%emt 0:02:44]} Ke7 {[%emt 0:11:07]} 12. Rxd5 {[%emt 0:01:14]} exd5 {[%emt 0:01:05]} 13. Nc7 {[%emt 0:00:11]} Be6 {[%emt 0:00:15]} 14. Nxa8 {[%emt 0:00:59]} Rxa8 {[%emt 0:00:06]} 15. Bb5 {[%emt 0:10:53]} a6 {[%emt 0:02:39]} 16. Bxc6 {[%emt 0:06:02]} bxc6 {[%emt 0:00:04]} 17. Ke2 {[%emt 0:00:12]} a5 {[%emt 0:08:03]} 18. Ne5 {[%emt 0:08:33]} Rc8 {[%emt 0:01:28]} 19. Nd3 {[%emt 0:01:18]} Bd6 {[%emt 0:02:43]} 20. Be3 {[%emt 0:15:28]} c5 {[%emt 0:02:00]} 21. Rd1 {[%emt 0:01:17]} Rc7 {[%emt 0:09:30]} (21... Bxh2 $6 22. Nxc5 Be5 23. Kd2 $11) 22. Rd2 {[%emt 0:03:41]} f6 {[%emt 0:02:59]} (22... Bxh2 $6 23. g3 (23. Nxc5 Be5 $16) (23. Bxc5+ Bd6 $14) 23... d4 24. cxd4 cxd4 25. Bxd4 $16) 23. Kf3 {[%emt 0:04:33]} h5 {[%emt 0:03:28]} (23... Bxh2 24. g3 (24. Bxc5+ Bd6 $14) (24. Nxc5 Be5 $11) 24... d4 25. cxd4 $16) 24. Bf4 {[%emt 0:04:22]} g5 {[%emt 0:01:38]} 25. Bxd6+ {[%emt 0:01:21]} Kxd6 {[%emt 0:00:04]} 26. h3 {[%emt 0:03:18]} (26. Ke3 $15) 26... Bf5 {[%emt 0:03:33]} (26... Re7 $17 27. b3 Bf5) 27. Ke2 $1 $15 {[%emt 0:02:17]} Re7+ {[%emt 0:02:32]} 28. Kd1 {[%emt 0:00:14]} Rb7 {[%emt 0:02:54]} 29. Nc1 {[%emt 0:03:57]} h4 {[%emt 0:03:43]} 30. Nb3 {[%emt 0:01:01]} Ra7 {[%emt 0:01:41]} 31. Re2 {[%emt 0:02:22]} (31. Na1 $15) 31... a4 $17 {[%emt 0:01:16]} 32. Nd2 {[%emt 0:00:21]} a3 {[%emt 0:03:47]} 33. b3 {[%emt 0:00:15]} Bg6 {[%emt 0:05:48]} 34. c4 $2 {[%emt 0:01:20] [#]} (34. Re3 $17 {was worth a try.}) 34... d4 $1 $19 {[%emt 0:01:38]} 35. Kc1 $2 {[%emt 0:02:35]} (35. Re1 {is a better defense.}) 35... Bd3 $19 {[%emt 0:04:01]} 36. Re1 {[%emt 0:02:20]} Re7 {[%emt 0:01:26]} 37. Rxe7 {[%emt 0:00:45]} Kxe7 {[%emt 0:00:04]} 38. g3 {[%emt 0:01:12]} hxg3 {[%emt 0:07:51]} 39. fxg3 {[%emt 0:00:07]} f5 {[%emt 0:00:14]} 40. Nf3 {[%emt 0:01:34]} Kf6 {[%emt 0:00:13]} 41. h4 {[%emt 0:00:20]} gxh4 {[%emt 0:09:17]} 42. gxh4 {[%emt 0:00:07]} f4 {[%emt 0:00:21]} 43. h5 {[%emt 0:00:54]} Be2 {[%emt 0:03:51]} 44. Nd2 {[%emt 0:00:14]} f3 {[%emt 0:01:19]} (44... Bxh5 $142 45. Ne4+ Ke5 46. Nxc5 Bg6) 45. Ne4+ {[%emt 0:00:25]} (45. b4 $142 cxb4 46. c5) 45... Ke5 $2 {[%emt 0:01:50]} (45... Kf5 $19 46. Nf2 Kg5) 46. Nf2 $11 {[%emt 0:00:52]} Kf5 {[%emt 0:00:39]} 47. Kd2 {[%emt 0:00:17]} Bf1 {[%emt 0:00:31]} 48. Ke1 {[%emt 0:00:43]} Be2 {[%emt 0:00:13]} 49. Kd2 $1 {[%emt 0:00:35]} Bf1 {[%emt 0:00:06]} 50. h6 {[%emt 0:00:33]} (50. Ke1 $1 $11 Be2 51. Kd2) 50... Kg6 $17 {[%emt 0:00:08]} 51. Ne4 {[%emt 0:00:07]} Bg2 {[%emt 0:00:50]} (51... Kxh6 52. Nxc5 Bh3 53. Nd3 $11) (51... Bh3 $1 $15 52. h7 Kg7 (52... Kxh7 $2 53. Ng5+ Kh6 54. Nxh3 $18)) 52. Ke1 $11 {[%emt 0:00:18]} d3 $2 {[%emt 0:00:58][%mdl 8192]} (52... Kxh6 $11 53. Nxc5 Kg5) 53. Nf2 $2 {[%emt 0:00:18]} (53. Nxc5 $2 {too greedy.} d2+ (53... Kxh6 $2 54. Nxd3 Bh3 55. Ne5 $18) 54. Kxd2 f2 $19 (54... Kxh6 $2 55. Ne4 $18)) (53. Kd2 $18) 53... Kxh6 $11 {[%emt 0:00:36]} 54. Nxd3 {[%emt 0:00:10]} Kg5 $2 {[%emt 0:00:17][%mdl 8192]} (54... Bh3 $11) 55. Nxc5 $18 {[%emt 0:00:35]} (55. Kf2 Kf5 $16) 55... Kf4 {[%emt 0:00:05]} 56. Kf2 {[%emt 0:00:20]} Ke5 {[%emt 0:00:59]} 57. Ke3 {[%emt 0:00:16]} Bh3 {[%emt 0:00:40]} 58. Nd3+ {[%emt 0:00:18]} ({Inferior is} 58. Kxf3 Kd4 59. Ne4 Bf5 $11) 58... Kd6 {[%emt 0:00:06]} 59. Kxf3 {[%emt 0:00:12]} Bf5 {[%emt 0:00:39]} 60. Ke3 {[%emt 0:00:12]} Bg6 {[%emt 0:00:36]} 61. Kd4 {[%emt 0:00:33]} Bf5 {[%emt 0:00:09]} 62. Kc3 {[%emt 0:00:22]} Kc6 {[%emt 0:00:14]} 63. Nb4+ {[%emt 0:00:26]} Kb6 {[%emt 0:01:18]} 64. Nc2 {[%emt 0:00:10]} 1-0

[Event "Djerba Festival Open-A 2024"]
[Site "Djerba"]
[Date "2024.02.18"]
[Round "1.4"]
[White "Levacic, Damir"]
[Black "Domenech, Vianney"]
[Result "0-1"]
[ECO "E11"]
[WhiteElo "2112"]
[BlackElo "2254"]
[Annotator "TA"]
[PlyCount "63"]
[EventDate "2024.02.18"]
[EventType "swiss"]
[EventCountry "TUN"]
[SourceTitle "playchess.com"]
[Source "ChessBase"]
[SourceQuality "1"]
[TimeControl "5400+30"]

{[%evp 10,63,11,7,47,24,23,12,17,-15,11,8,12,16,31,0,10,-13,0,-12,0,0,0,7,13,-6,0,0,0,0,0,0,17,2,14,-137,-150,-134,-140,-254,-237,-289,-291,-270,-252,-630,-314,-314,-241,-431,-323,-1526,-843,-833,-803,-2289]} 1. d4 {[%emt 0:00:03]} Nf6 {[%emt 0:00:09]} 2. c4 {[%emt 0:00:41]} e6 {[%emt 0:00:19][%cal Be7e6,Be6e5][%mdl 32]} 3. Nf3 {[%emt 0:01:10]} Bb4+ {[%emt 0:00:29]} 4. Nbd2 {[%emt 0:00:20]} O-O {[%emt 0:00:15]} 5. a3 {[%emt 0:00:50]} Be7 {[%emt 0:00:05]} 6. e4 {[%emt 0:04:28]} d6 {[%emt 0:01:09][%cal Oe6e5]} 7. Bd3 {[%emt 0:04:46]} e5 {[%emt 0:01:16]} 8. d5 {[%emt 0:03:17]} a5 {[%emt 0:02:49] The position is equal.} 9. Rb1 {[%emt 0:04:31]} a4 {[%emt 0:08:12]} 10. Bc2 {[%emt 0:01:21]} Qe8 {[%emt 0:00:23]} 11. O-O {[%emt 0:04:11]} Bd7 {[%emt 0:02:43]} 12. c5 {[%emt 0:06:23]} Na6 {[%emt 0:01:47]} 13. cxd6 {[%emt 0:00:33]} cxd6 {[%emt 0:00:59]} 14. Re1 {[%emt 0:04:21]} Nc5 {[%emt 0:05:49]} 15. Nf1 {[%emt 0:03:30]} Bd8 {[%emt 0:16:19]} 16. Ng3 {[%emt 0:01:58]} Ba5 {[%emt 0:07:21]} 17. Bd2 {[%emt 0:10:11]} Qd8 {[%emt 0:00:04]} 18. Bc3 {[%emt 0:05:22]} Qb6 {[%emt 0:08:26]} 19. Qd2 {[%emt 0:05:03]} Rfc8 {[%emt 0:02:12]} 20. Nh4 {[%emt 0:37:31]} Bxc3 {[%emt 0:06:56]} (20... Nb3 {feels hotter.} 21. Bxb3 Bxc3 22. bxc3 axb3 23. Nhf5 Bxf5 24. Nxf5 Rc4) 21. bxc3 {[%emt 0:00:00]} Nb3 {[%emt 0:00:02]} 22. Qe3 {[%emt 0:00:00]} (22. Bxb3 $1 $11 axb3 23. Nhf5 Bxf5 (23... Rxa3 24. Qg5 $16) 24. Nxf5) 22... Qxe3 $17 {[%emt 0:10:15]} 23. Rxe3 {[%emt 0:00:00] [#]} Nd2 {[%emt 0:01:13] Black is more active.} 24. Rxb7 {[%emt 0:00:00]} (24. Ra1 $17) 24... Nc4 $1 $19 {[%emt 0:00:18][%csl LRa3,LRe3]} 25. Re2 {[%emt 0:00:00]} Nxa3 {[%emt 0:02:55]} 26. Nhf5 {[%emt 0:00:00]} Rxc3 {[%emt 0:02:56]} 27. Rb2 {[%emt 0:00:00]} (27. Re3 Rxc2 28. Rxa3) 27... Nc4 {[%emt 0:01:55]} (27... Rxc2 $142 28. Rexc2 Nxc2 29. Nxd6 Nd4) 28. Ra2 {[%emt 0:00:00]} a3 {[%emt 0:04:04] Strongly threatening ...Bxf5.} 29. Kf1 $2 {[%emt 0:00:00]} (29. Re1 Nb2 (29... g6 $2 30. Ne2 $19) 30. Ne3) 29... Rb8 {[%emt 0:02:07]} 30. Ke1 $2 {[%emt 0:00:00]} (30. Ne3 Rb2 31. Nd1 Rxa2 32. Nxc3) 30... Rb2 {[%emt 0:00:45]} 31. Bd1 {[%emt 0:00:00]} Rb1 {[%emt 0:06:14][%cal Ob1d1] [#] ...Rxd1+! is the strong threat.} 32. Ra1 {[%emt 0:06:00] Weighted Error Value: White=0.75/Black=0.53.  Mistake:       	White=5     	Black=1      Inaccurate:     	White=1     	Black=2      OK:         	White=9     	Black=11     Best:        	White=1     	---} 0-1

[Event "Djerba Festival Open-A 2024"]
[Site "Djerba"]
[Date "2024.02.18"]
[Round "1.5"]
[White "Mohebbi, Jafar"]
[Black "Araoune, Saadi"]
[Result "0-1"]
[ECO "B15"]
[WhiteElo "2259"]
[BlackElo "2077"]
[Annotator "TA"]
[PlyCount "66"]
[EventDate "2024.02.18"]
[EventType "swiss"]
[EventCountry "TUN"]
[SourceTitle "playchess.com"]
[Source "ChessBase"]
[SourceQuality "1"]
[TimeControl "5400+30"]

{[%evp 10,66,42,11,21,0,0,0,9,12,4,0,16,0,8,0,17,11,12,0,0,-42,-37,-27,-22,-48,-52,-45,-39,-58,-59,-57,-31,-64,-61,-87,-83,-88,-80,-195,-185,-195,-197,-185,-212,-485,-485,-478,-475,-459,-438,-1317,-1320,-29976,-29978,-29976,-29979,-29979,-29980]} 1. e4 {[%emt 0:00:11]} c6 {[%emt 0:00:10]} 2. d4 {[%emt 0:00:10]} d5 {[%emt 0:00:09]} 3. Nc3 {[%emt 0:00:04]} dxe4 {[%emt 0:00:10]} 4. Nxe4 {[%emt 0:00:05]} Nf6 {[%emt 0:00:15]} 5. Nxf6+ {[%emt 0:01:27]} exf6 {[%emt 0:00:09]} 6. Be3 {[%emt 0:01:10]} Bd6 {[%emt 0:01:00]} 7. Qd2 {[%emt 0:00:20]} O-O {[%emt 0:01:25]} 8. Bd3 {[%emt 0:00:12]} Na6 {[%emt 0:02:31] The position is equal.} 9. Bxa6 {[%emt 0:06:10]} bxa6 {[%emt 0:00:08][%cal Bb7a6,Ba6a5,Ba5a4][%mdl 32]} 10. Ne2 {[%emt 0:00:06]} Rb8 {[%emt 0:03:25]} 11. c3 {[%emt 0:02:29]} Qc7 {[%emt 0:01:40][%cal Of8d8]} 12. h3 {[%emt 0:01:51]} Bf5 {[%emt 0:04:37]} 13. O-O {[%emt 0:01:47]} a5 {[%emt 0:02:42]} 14. b3 {[%emt 0:08:50][%cal Bb2b3,Bb3b4,Bb4a5][%mdl 32]} a4 {[%emt 0:05:21]} 15. b4 {[%emt 0:15:33] White is weak on the light squares} a3 {[%emt 0:03:09]} 16. Bf4 {[%emt 0:12:47]} a5 {[%emt 0:05:33]} 17. Bxd6 {[%emt 0:10:33]} (17. Rfd1 {simplifies} Be6 18. d5 cxd5 19. Bxd6 Qxd6 20. Rab1) 17... Qxd6 {[%emt 0:00:08]} 18. bxa5 {[%emt 0:07:58]} Rb2 {[%emt 0:02:31]} 19. Qf4 {[%emt 0:05:31]} Qd5 {[%emt 0:01:09]} (19... Qxf4 {simplifies} 20. Nxf4 Ra8 21. c4 Rxa5 22. d5 cxd5 23. Nxd5 Be6) 20. Ng3 {[%emt 0:00:56]} Bg6 {[%emt 0:01:48]} 21. a6 {[%emt 0:03:13]} Qa5 {[%emt 0:04:49] Black has more active pieces.} (21... Rxa2 $2 22. a7 Rxa1 (22... Ra8 $2 23. Qb8+ Qd8 24. Qxd8+ Rxd8 25. Rxa2 $18) 23. Rxa1 $18) 22. Qd6 {[%emt 0:00:56]} Qxa6 {[%emt 0:03:21]} (22... Qxc3 23. Rac1 Qa5 24. Rxc6 $16) 23. d5 {[%emt 0:02:55]} Rc8 $36 {[%emt 0:04:41][%mdl 2048] Black is on the roll.} 24. dxc6 {[%emt 0:04:28]} (24. c4 $17) 24... h6 $19 {[%emt 0:04:52]} (24... Qxc6 25. Qxa3 Qb6 (25... Qxc3 26. Rfc1 $17) 26. Rad1 $11) 25. Rfe1 {[%emt 0:00:58] [#]} Kh7 $1 {[%emt 0:04:00]} ({Weaker is} 25... Rxc6 26. Re8+ Kh7 27. Qf8 Bb1 28. Nh5 (28. Qxf7 Qb6 $11) (28. Qxf7 Qb6 $11)) (25... Qxc6 26. Qxa3 Qxc3 27. Qxc3 Rxc3 28. Re8+ Kh7 29. Re2 Rxe2 30. Nxe2 $15) 26. Re3 {[%emt 0:07:16]} Rxc6 {[%emt 0:01:25]} 27. Qf8 {[%emt 0:02:05]} (27. Qf4) 27... Rc8 {[%emt 0:05:09]} 28. Re8 {[%emt 0:01:22]} Rxe8 {[%emt 0:00:10]} (28... Rxc3 29. Qh8#) 29. Qxe8 {[%emt 0:00:02]} Qb6 {[%emt 0:02:11]} 30. Rf1 {[%emt 0:03:01]} (30. Qe1 $142) 30... Bd3 {[%emt 0:03:14]} 31. Nh5 {[%emt 0:01:00]} Bxf1 {[%emt 0:00:38] Black mates.} ({Stronger than} 31... Rxa2 32. Qxf7) 32. Qe4+ {[%emt 0:00:32]} g6 {[%emt 0:00:35]} 33. Qf3 {[%emt 0:00:30]} gxh5 {[%emt 0:00:58] Weighted Error Value: White=0.64/Black=0.04 (flawless) .  Mistake:       	White=3     	---        Inaccurate:     	White=5     	Black=1      OK:         	White=6     	Black=7      Best:        	---       	Black=6      Strong:       	---       	Black=1} 0-1

[Event "Djerba Festival Open-A 2024"]
[Site "Djerba"]
[Date "2024.02.18"]
[Round "1.6"]
[White "Taieb, Sahbi"]
[Black "Rudzinska, Michalina"]
[Result "0-1"]
[ECO "D00"]
[WhiteElo "2085"]
[BlackElo "2241"]
[Annotator "TA"]
[PlyCount "114"]
[EventDate "2024.02.18"]
[EventType "swiss"]
[EventCountry "TUN"]
[SourceTitle "playchess.com"]
[Source "ChessBase"]
[SourceQuality "1"]
[TimeControl "5400+30"]

{[%evp 24,114,94,54,39,52,49,41,26,24,71,41,44,34,43,28,37,36,62,58,54,15,60,-54,-38,-140,-149,-143,-70,-54,-60,-264,-250,-250,-53,-77,-85,-87,-20,-100,-89,-91,-98,-116,-12,-19,-10,-139,0,0,0,-155,0,-164,0,-13,0,-41,16,-192,-173,-237,-211,-461,-443,-431,-372,-442,-433,-353,-457,-1193,-1083,-1557,-1559,-1336,-1434,-1455,-992,-1252,-2381,-2531,-2712,-2901,-2537,-2766,-2602,-29985,-29986,-29985,-29985,-29985,-29986]} 1. d4 {[%emt 0:00:16]} Nf6 {[%emt 0:00:08]} 2. Nf3 {[%emt 0:00:20]} g6 {[%emt 0:00:06]} 3. Nc3 {[%emt 0:00:19]} d5 {[%emt 0:00:51]} 4. Bf4 {[%emt 0:00:16]} a6 {[%emt 0:01:26]} 5. e3 {[%emt 0:01:21]} Bg7 {[%emt 0:00:07]} 6. Be2 {[%emt 0:00:31]} O-O {[%emt 0:04:01]} 7. Ne5 {[%emt 0:01:10] D00: Damenbauernspiele.} Nbd7 {[%emt 0:13:59]} 8. h4 {[%emt 0:01:52]} c6 {[%emt 0:06:43]} 9. h5 {[%emt 0:03:23]} Ne8 $146 {[%emt 0:09:55]} ({Predecessor:} 9... Qb6 10. Rb1 Nxe5 11. Bxe5 Nd7 12. Bxg7 Kxg7 13. hxg6 hxg6 14. Qd2 Rh8 15. Rxh8 Kxh8 {1-0 Ajibola,O (2297)-Anwuli,D (2330) NGR-ch Lagos 2021 (1)}) 10. hxg6 {[%emt 0:02:27]} fxg6 {[%emt 0:02:49]} 11. Bd3 {[%emt 0:08:00]} Nxe5 {[%emt 0:04:21]} 12. Bxe5 {[%emt 0:02:08]} Bf5 {[%emt 0:05:39]} 13. Bxf5 {[%emt 0:08:19]} Rxf5 {[%emt 0:00:24]} 14. Bxg7 {[%emt 0:05:31]} Nxg7 {[%emt 0:02:13]} 15. g4 {[%emt 0:01:19]} Rf7 {[%emt 0:00:52]} 16. f4 {[%emt 0:02:18]} e6 {[%emt 0:11:49]} (16... Qb6 $11 {scheint genauer.}) 17. Qd2 {[%emt 0:04:21]} Qc7 {[%emt 0:05:43]} 18. O-O-O {[%emt 0:13:22]} Ne8 {[%emt 0:02:03]} 19. Rh6 {[%emt 0:05:04]} Nd6 {[%emt 0:03:57]} 20. Rdh1 {[%emt 0:03:16]} b5 {[%emt 0:02:31]} 21. Qh2 {[%emt 0:06:05]} Rg7 $1 {[%emt 0:02:25]} 22. Nd1 {[%emt 0:05:32]} Rc8 {[%emt 0:05:29]} 23. b4 {[%emt 0:07:17]} (23. Nf2 $14) 23... a5 {[%emt 0:05:15]} 24. Nb2 {[%emt 0:05:44]} (24. bxa5 $15 Ra8 25. Kb1) 24... axb4 $17 {[%emt 0:01:46]} 25. Nd3 {[%emt 0:00:51]} Ne4 {[%emt 0:02:51]} (25... Nc4 $1 $17 {...Ra8 wäre nun fies.} 26. f5 (26. Nxb4 $2 {verliert.} Qe7 $19) 26... Qxh2 (26... Nxe3 $2 {ist das falsche Schlagen.} 27. Qe2 $18) (26... gxf5 27. Qxc7 Rcxc7 28. gxf5 $19) (26... exf5 $2 27. gxf5 Qxh2 28. R6xh2 $19) 27. R6xh2 exf5 (27... Nxe3 28. fxg6 Rcc7 29. gxh7+ Rxh7 30. Rxh7 $16) (27... gxf5 $2 28. gxf5 exf5 29. Rh6 $19) 28. gxf5 gxf5) 26. f5 $1 $15 {[%emt 0:06:19]} exf5 {[%emt 0:01:31]} 27. Qxc7 $2 {[%emt 0:00:30]} ({Der einzige Zug:} 27. gxf5 $15 gxf5 28. Qxc7 Rcxc7 29. Kb2) 27... Rcxc7 {[%emt 0:00:11]} 28. gxf5 {[%emt 0:00:22]} gxf5 $2 {[%emt 0:00:03]} (28... Ng3 $1 $19 29. f6 Rgf7 (29... Nxh1 $2 30. fxg7 Ng3 31. Rh2 $19)) 29. Nxb4 {[%emt 0:00:32]} Rg6 {[%emt 0:00:27]} 30. R6h4 {[%emt 0:01:05]} Rg4 {[%emt 0:02:10]} (30... Nf2 $17 31. Rf1 Ng4) 31. Nd3 {[%emt 0:02:27]} (31. Rh6 $11) 31... Rxh4 $17 {[%emt 0:01:19]} 32. Rxh4 {[%emt 0:00:02]} Kg7 {[%emt 0:00:34]} 33. Rh5 {[%emt 0:00:37] [#]} Kg6 {[%emt 0:00:51]} ({Günstiger ist} 33... Nd6 $1 $17 34. Ne5 c5 35. dxc5 Rxc5) 34. Nf4+ $11 {[%emt 0:00:57]} Kf6 {[%emt 0:00:58]} 35. Kb2 {[%emt 0:01:12]} (35. Rh2 $1 $11 {bleibt in der Remisbreite.}) 35... Ng3 {[%emt 0:01:09]} 36. Rh3 $1 {[%emt 0:00:44]} Ne4 {[%emt 0:00:27]} (36... Nf1 $5 37. Kc3 $8 Ra7 $11) 37. Rh5 {[%emt 0:00:41] [#]} ({Aber nicht} 37. Rh6+ $2 Kg5 38. Rh1 Ng3 $19) 37... Ng3 $2 {[%emt 0:00:09]} (37... Nf2 $1 $17 {Droht ...Re7 und aus.} 38. Kc3 Nd1+ 39. Kd2 Nf2 40. Rh6+ Kg5 41. Rh5+ Kg4) 38. Rh2 $2 {[%emt 0:00:37]} (38. Rh3 $1 $11 {und Weiss ist OK.} Ne4 39. Rh2) 38... Ne4 $2 {[%emt 0:01:08]} (38... Nf1 $19 39. Rg2 Re7 (39... Nxe3 40. Nh5+ Ke6 41. Re2 $17) 40. Nh5+ Kf7 41. Rg7+ Kf8) 39. Kb3 {[%emt 0:00:18]} Ng3 {[%emt 0:01:03]} 40. Kb4 {[%emt 0:01:26]} Ra7 {[%emt 0:00:24]} (40... Nf1 $15 41. Rh6+ Kg5) 41. Kb3 $2 {[%emt 0:00:48]} (41. Rh6+ $11 {und Weiss steht sicher.} Kg5 42. Rxc6) 41... Kg5 {[%emt 0:00:35]} 42. Rg2 {[%emt 0:00:52]} (42. Nd3 $142) 42... Kg4 $19 {[%emt 0:00:26]} 43. Nh5 $2 {[%emt 0:00:50]} (43. Nd3) 43... Kxh5 $19 {[%emt 0:00:16]} 44. Rxg3 {[%emt 0:00:01]} Kh4 {[%emt 0:00:12]} 45. Rf3 {[%emt 0:00:32]} Kg4 {[%emt 0:00:26]} 46. Rf4+ {[%emt 0:00:22]} Kg5 {[%emt 0:00:03]} 47. c3 {[%emt 0:00:20]} (47. Kb4 $142 Rxa2 48. Rf2) 47... h5 $19 {[%emt 0:00:09]} 48. Rf2 {[%emt 0:00:20]} h4 {[%emt 0:00:25]} 49. Rg2+ {[%emt 0:00:10]} Kh5 {[%emt 0:00:06]} 50. Kb4 {[%emt 0:01:08]} h3 {[%emt 0:01:08]} 51. Rg8 {[%emt 0:00:16]} Rh7 {[%emt 0:00:18]} 52. Rg1 {[%emt 0:01:21]} h2 {[%emt 0:00:15]} 53. Rh1 {[%emt 0:00:09]} Kg4 {[%emt 0:00:05]} 54. Kc5 {[%emt 0:00:06]} Rh6 {[%emt 0:00:30]} 55. Rxh2 {[%emt 0:00:27]} Rxh2 {[%emt 0:00:06]} 56. Kxc6 {[%emt 0:00:06]} Rxa2 {[%emt 0:00:28]} 57. Kxd5 {[%emt 0:00:08]} Rc2 {[%emt 0:00:12]} 0-1

[Event "Djerba Festival Open-A 2024"]
[Site "Djerba"]
[Date "2024.02.18"]
[Round "1.7"]
[White "Djabri, Massinas"]
[Black "Lorans, Sylvain"]
[Result "1-0"]
[ECO "E51"]
[WhiteElo "2238"]
[BlackElo "2076"]
[Annotator "RC"]
[PlyCount "27"]
[EventDate "2024.02.18"]
[EventType "swiss"]
[EventCountry "TUN"]
[SourceTitle "playchess.com"]
[Source "ChessBase"]
[SourceQuality "1"]
[TimeControl "5400+30"]

1. d4 {[%emt 0:00:11]} Nf6 {[%emt 0:00:34]} 2. c4 {[%emt 0:00:08]} e6 {[%emt 0:00:13]} 3. Nf3 {[%emt 0:00:08]} d5 {[%emt 0:00:06]} 4. Nc3 {[%emt 0:00:05]} Bb4 {[%emt 0:01:03]} 5. a3 {[%emt 0:00:07]} Bxc3+ {[%emt 0:00:29]} 6. bxc3 {[%emt 0:00:06]} O-O {[%emt 0:01:44]} 7. e3 {[%emt 0:00:37]} Re8 {[%emt 0:03:44]} 8. Bb2 {[%emt 0:00:38]} b6 {[%emt 0:05:35]} 9. cxd5 {[%emt 0:11:52]} exd5 {[%emt 0:01:06]} 10. c4 {[%emt 0:00:08]} Ba6 {[%emt 0:05:05]} 11. Qb3 {[%emt 0:13:18]} Nc6 {[%emt 0:03:43]} 12. Bc3 {[%emt 0:08:56]} Bxc4 {[%emt 0:16:22]} 13. Be2 {[%emt 1:00:46]} Bd3 14. Bxd3 {[%emt 0:00:00]} 1-0